fUST/lending_fUST_20250428
["ID","MTS","AMOUNT","RATE_DAILY","PERIOD"]
[359209687,1745814638575,-500.0,0.0003178,2]
[359209688,1745814638585,-500.0,0.0003178,2]
[359209689,1745814638594,-500.0,0.0003178,2]
[359209690,1745814638603,-500.0,0.0003178,2]
[359209691,1745814638612,-500.0,0.0003178,2]
[359209692,1745814638622,-500.0,0.0003178,2]
[359209693,1745814638631,-500.0,0.0003178,2]
[359209694,1745814638640,-500.0,0.0003178,2]
[359209695,1745814638650,-500.0,0.0003178,2]
[359209696,1745814638659,-242.80762197,0.0003178,2]
[359209697,1745814638669,-500.0,0.0003178,2]
[359209698,1745814638678,-500.0,0.0003178,2]
[359209699,1745814638688,-500.0,0.0003178,2]
[359209700,1745814638697,-500.0,0.0003178,2]
[359209701,1745814638707,-500.0,0.0003178,2]
[359209702,1745814638717,-500.0,0.0003178,2]
[359209703,1745814638727,-500.0,0.0003178,2]
[359209704,1745814638736,-97394.02555038,0.00032866,2]
[359209705,1745814638746,-500.25181227,0.00032873,5]
[359209706,1745814638756,-500.0,0.00032873,5]
[359209707,1745814638766,-500.0,0.00032873,5]
[359209708,1745814638775,-500.0,0.00032873,5]
[359209709,1745814638786,-500.77378023,0.00032873,5]
[359209710,1745814638795,-500.0,0.00032873,5]
[359209711,1745814638803,-500.56888334,0.00032873,5]
[359209712,1745814638813,-501.58616856,0.00032873,5]
[359209713,1745814638823,-500.0,0.00032873,5]
[359209714,1745814638832,-399.59979186,0.00032873,5]
[359209715,1745814638841,-500.63535154,0.00032873,5]
[359209716,1745814638852,-501.30879091,0.00032873,5]
[359209717,1745814638862,-500.6139638,0.00032873,3]
[359209718,1745814638871,-501.7569803,0.00032873,5]
[359209719,1745814638880,-521.34059975,0.00032873,5]
[359209720,1745814638891,-501.67699737,0.00032873,5]
[359209721,1745814638901,-500.0,0.00032873,5]
[359209722,1745814638910,-184.10116272,0.00032874,2]
[359209723,1745814638920,-503.12888276,0.00032876,2]
[359209724,1745814638930,-501.81232517,0.00032876,2]
[359209725,1745814638940,-200.0,0.00032876,2]
[359209726,1745814638950,-167.35227657,0.00032876,2]
[359209727,1745814638960,-506.99311906,0.00032876,2]
[359209728,1745814638971,-400.0,0.00032876,2]
[359209729,1745814638980,-400.0,0.00032876,2]
[359209730,1745814638988,-400.0,0.00032876,2]
[359209731,1745814638997,-400.0,0.00032876,2]
[359209732,1745814639007,-400.0,0.00032876,2]
[359209733,1745814639016,-400.0,0.00032876,2]
[359209734,1745814639027,-400.0,0.00032876,2]
[359209735,1745814639037,-351.68309348,0.00032876,2]
[359209736,1745814639047,-400.0,0.00032876,2]
[359209737,1745814639056,-470.25850877,0.00032876,2]
[359209738,1745814639065,-239.97050814,0.00032876,2]
[359209739,1745814639074,-400.0,0.00032876,2]
[359209740,1745814639083,-502.51414049,0.00032876,2]
[359209741,1745814639092,-500.0,0.00032876,2]
[359209742,1745814639101,-378.17910817,0.00032876,2]
[359209743,1745814639111,-505.17590671,0.00032876,2]
[359209744,1745814639122,-400.0,0.00032876,2]
[359209745,1745814639131,-501.06697589,0.00032876,2]
[359209746,1745814639140,-500.0,0.00032876,2]
[359209747,1745814639150,-400.0,0.00032876,2]
[359209748,1745814639161,-509.40740646,0.00032876,2]
[359209749,1745814639171,-400.0,0.00032876,2]
[359209750,1745814639181,-507.26457768,0.00032876,2]
[359209751,1745814639190,-400.0,0.00032876,2]
[359209752,1745814639199,-400.0,0.00032876,2]
[359209753,1745814639210,-400.0,0.00032876,2]
[359209754,1745814639223,-400.0,0.00032876,2]
[359209755,1745814639233,-400.0,0.00032876,2]
[359209756,1745814639242,-503.5678323,0.00032876,2]
[359209757,1745814639251,-400.0,0.00032876,2]
[359209758,1745814639262,-1000.0,0.00032876,2]
[359209759,1745814639271,-400.0,0.00032876,2]
[359209760,1745814639280,-505.20386155,0.00032876,2]
[359209761,1745814639290,-506.20443544,0.00032876,2]
[359209762,1745814639300,-502.7449212,0.00032876,2]
[359209763,1745814639309,-509.431972,0.00032876,2]
[359209764,1745814639319,-400.0,0.00032876,2]
[359209765,1745814639328,-506.56512089,0.00032876,2]
[359209766,1745814639337,-400.0,0.00032876,2]
[359209767,1745814639347,-502.82189837,0.00032876,2]
[359209768,1745814639356,-400.0,0.00032876,2]
[359209769,1745814639365,-500.0,0.00032876,2]
[359209770,1745814639374,-400.0,0.00032876,2]
[359209771,1745814639384,-505.31903411,0.00032876,2]
[359209772,1745814639392,-502.65196566,0.00032876,2]
[359209773,1745814639403,-400.0,0.00032876,2]
[359209774,1745814639412,-500.66997536,0.00032876,2]
[359209775,1745814639421,-400.0,0.00032876,2]
[359209776,1745814639431,-500.71948553,0.00032876,2]
[359209777,1745814639440,-400.0,0.00032876,2]
[359209778,1745814639450,-500.35837171,0.00032876,2]
[359209779,1745814639460,-400.0,0.00032876,2]
[359209780,1745814639470,-500.80868062,0.00032876,2]
[359209781,1745814639480,-400.0,0.00032876,2]
[359209782,1745814639489,-400.0,0.00032876,2]
[359209783,1745814639498,-500.0,0.00032876,2]
[359209784,1745814639508,-500.0,0.00032876,2]
[359209785,1745814639517,-400.0,0.00032876,2]
[359209786,1745814639527,-509.8419672,0.00032876,2]
[359209788,1745814639536,-400.0,0.00032876,2]
[359209790,1745814639546,-400.0,0.00032876,2]
[359209791,1745814639554,-400.0,0.00032876,2]
[359209793,1745814639564,-400.0,0.00032876,2]
[359209794,1745814639573,-400.0,0.00032876,2]
[359209795,1745814639582,-400.0,0.00032876,2]
[359209796,1745814639591,-400.0,0.00032876,2]
[359209797,1745814639601,-500.0,0.00032876,2]
[359209798,1745814639611,-503.47938581,0.00032876,2]
[359209799,1745814639620,-506.46724938,0.00032876,2]
[359209800,1745814639629,-400.0,0.00032876,2]
[359209801,1745814639639,-502.83602165,0.00032876,2]
[359209802,1745814639648,-503.51615354,0.00032876,2]
[359209803,1745814639658,-400.0,0.00032876,2]
[359209804,1745814639668,-400.0,0.00032876,2]
[359209805,1745814639677,-400.0,0.00032876,2]
[359209806,1745814639686,-400.0,0.00032876,2]
[359209807,1745814639696,-400.0,0.00032876,2]
[359209808,1745814639705,-300.0,0.00032876,2]
[359209809,1745814639715,-400.0,0.00032876,2]
[359209810,1745814639725,-400.0,0.00032876,2]
[359209811,1745814639734,-165.58220671,0.00032876,2]
[359209812,1745814639743,-518.41687967,0.00032876,2]
[359209813,1745814639752,-400.0,0.00032876,2]
[359209814,1745814639762,-211.31149688,0.00032876,2]
[359209817,1745814640196,-200.87252409,0.00030275,9]
[359209818,1745814640206,-188.68850312,0.00032876,2]
[359209819,1745814640215,-400.0,0.00032876,2]
[359209820,1745814640227,-400.0,0.00032876,2]
[359209821,1745814640236,-168.70242786,0.00032876,2]
[359209822,1745814640245,-172.02400006,0.00032876,2]
[359209823,1745814640255,-400.0,0.00032876,2]
[359209824,1745814640264,-400.0,0.00032876,2]
[359209825,1745814640274,-400.0,0.00032876,2]
[359209826,1745814640283,-501.6054833,0.00032876,2]
[359209827,1745814640294,-400.0,0.00032876,2]
[359209828,1745814640304,-400.0,0.00032876,2]
[359209829,1745814640314,-400.0,0.00032876,2]
[359209830,1745814640323,-196.6058165,0.00032876,2]
[359209860,1745814644129,-27.94509736,0.00030733,9]
[359209866,1745814646024,-172.92742673,0.00030733,9]
[359209867,1745814646033,-200.87252409,0.00031192,9]
[359209868,1745814646043,-200.87252409,0.0003165,10]
[359209869,1745814646052,-200.87252409,0.00032108,10]
[359209870,1745814646060,-200.87252409,0.00032567,10]
[359209871,1745814646070,-306.42207096,0.00032876,2]
[359209872,1745814646080,-500.0,0.00032876,2]
[359209873,1745814646089,-400.0,0.00032876,2]
[359209874,1745814646098,-400.0,0.00032876,2]
[359209875,1745814646107,-200.0,0.00032876,2]
[359209876,1745814646116,-400.0,0.00032876,2]
[359209877,1745814646125,-400.0,0.00032876,2]
[359209878,1745814646135,-505.02800321,0.00032876,2]
[359209879,1745814646144,-500.94522763,0.00032876,2]
[359209880,1745814646154,-502.62238594,0.00032876,2]
[359209881,1745814646163,-502.44125764,0.00032876,2]
[359209882,1745814646173,-400.0,0.00032876,2]
[359209883,1745814646182,-400.0,0.00032876,2]
[359209884,1745814646191,-400.0,0.00032876,2]
[359209885,1745814646200,-218.79277383,0.00032876,2]
[359209886,1745814646209,-498.72677436,0.00032876,2]
[359209887,1745814646218,-400.0,0.00032876,2]
[359209888,1745814646228,-400.0,0.00032876,2]
[359209889,1745814646240,-400.0,0.00032876,2]
[359209890,1745814646249,-400.0,0.00032876,2]
[359209891,1745814646258,-400.0,0.00032876,2]
[359209892,1745814646268,-400.0,0.00032876,2]
[359209893,1745814646277,-400.0,0.00032876,2]
[359209894,1745814646288,-384.87019497,0.00032876,2]
[359209895,1745814646297,-247.48738282,0.00032876,2]
[359209896,1745814646307,-400.0,0.00032876,2]
[359209897,1745814646318,-506.64029648,0.00032876,2]
[359209898,1745814646327,-500.48996801,0.00032876,2]
[359209899,1745814646336,-400.0,0.00032876,2]
[359209900,1745814646346,-400.0,0.00032876,2]
[359209901,1745814646355,-400.0,0.00032876,2]
[359209902,1745814646364,-400.0,0.00032876,2]
[359209903,1745814646374,-400.0,0.00032876,2]
[359209904,1745814646383,-501.804325,0.00032876,2]
[359209905,1745814646392,-400.0,0.00032876,2]
[359209906,1745814646401,-400.0,0.00032876,2]
[359209907,1745814646411,-301.26143887,0.00032876,2]
[359209908,1745814646420,-400.0,0.00032876,2]
[359209909,1745814646430,-400.0,0.00032876,2]
[359209910,1745814646440,-400.0,0.00032876,2]
[359209911,1745814646449,-479.68,0.00032876,2]
[359209912,1745814646459,-400.0,0.00032876,2]
[359209913,1745814646469,-501.09991588,0.00032876,2]
[359209914,1745814646480,-501.90280292,0.00032876,2]
[359209915,1745814646489,-400.0,0.00032876,2]
[359209916,1745814646499,-400.0,0.00032876,2]
[359209917,1745814646509,-400.0,0.00032876,2]
[359209918,1745814646518,-221.95,0.00032876,2]
[359209919,1745814646527,-400.0,0.00032876,2]
[359209920,1745814646537,-500.70463981,0.00032876,2]
[359209921,1745814646547,-485.03,0.00032876,2]
[359209922,1745814646557,-504.3241355,0.00032876,2]
[359209923,1745814646566,-400.0,0.00032876,2]
[359209924,1745814646575,-400.0,0.00032876,2]
[359209925,1745814646585,-400.0,0.00032876,2]
[359209926,1745814646594,-501.1977718,0.00032876,2]
[359209927,1745814646603,-504.27919905,0.00032876,2]
[359209928,1745814646612,-400.0,0.00032876,2]
[359209929,1745814646621,-503.21943721,0.00032876,2]
[359209930,1745814646631,-501.47565888,0.00032876,2]
[359209931,1745814646640,-400.0,0.00032876,2]
[359209932,1745814646648,-400.0,0.00032876,2]
[359209933,1745814646658,-400.0,0.00032876,2]
[359209934,1745814646771,-314.78828047,0.00032876,2]
[359209935,1745814646781,-400.0,0.00032876,2]
[359209936,1745814646790,-400.0,0.00032876,2]
[359209937,1745814646799,-501.01745025,0.00032876,2]
[359209938,1745814646808,-400.0,0.00032876,2]
[359209939,1745814646817,-503.13806857,0.00032876,2]
[359209940,1745814646826,-500.0,0.00032876,2]
[359209941,1745814646835,-400.0,0.00032876,2]
[359209942,1745814646845,-502.01716287,0.00032876,2]
[359209943,1745814646854,-400.0,0.00032876,2]
[359209944,1745814646863,-400.0,0.00032876,2]
[359209945,1745814646872,-400.0,0.00032876,2]
[359209946,1745814646882,-400.0,0.00032876,2]
[359209947,1745814646891,-502.86398289,0.00032876,2]
[359209948,1745814646900,-400.0,0.00032876,2]
[359209949,1745814646910,-400.0,0.00032876,2]
[359209950,1745814646920,-400.0,0.00032876,2]
[359209951,1745814646929,-400.0,0.00032876,2]
[359209952,1745814646939,-400.0,0.00032876,2]
[359209953,1745814646948,-400.0,0.00032876,2]
[359209954,1745814646956,-400.0,0.00032876,2]
[359209955,1745814646965,-400.0,0.00032876,2]
[359209956,1745814646975,-506.49337869,0.00032876,2]
[359209957,1745814646984,-400.0,0.00032876,2]
[359209958,1745814646993,-400.0,0.00032876,2]
[359209959,1745814647002,-400.0,0.00032876,2]
[359209960,1745814647011,-203.83131042,0.00032876,2]
[359209961,1745814647020,-400.0,0.00032876,2]
[359209962,1745814647029,-244.24801752,0.00032876,2]
[359209963,1745814647116,-155.75198248,0.00032876,2]
[359209964,1745814647125,-400.0,0.00032876,2]
[359209965,1745814647135,-400.0,0.00032876,2]
[359209966,1745814647144,-400.0,0.00032876,2]
[359209967,1745814647153,-400.0,0.00032876,2]
[359209968,1745814647163,-400.0,0.00032876,2]
[359209969,1745814647171,-400.0,0.00032876,2]
[359209970,1745814647180,-400.0,0.00032876,2]
[359209971,1745814647190,-400.0,0.00032876,2]
[359209972,1745814647199,-400.0,0.00032876,2]
[359209973,1745814647208,-400.0,0.00032876,2]
[359209974,1745814647218,-400.0,0.00032876,2]
[359209975,1745814647228,-190.88096192,0.00032876,2]
[359209979,1745814811975,2004.8,0.00025,30]
[359209990,1745815469777,200.0,0.00021,10]
[359209991,1745815546179,-619.09051818,0.000269,2]
[359209992,1745815546203,-313.28589057,0.00027,3]
[359209993,1745815546227,-313.28589057,0.00027,3]
[359209994,1745815546250,-313.28589057,0.00027,3]
[359209995,1745815546271,-277.18891687,0.00027396,2]
[359209996,1745815557087,-922.81108313,0.00027396,2]
[359209997,1745815557108,-927.20134547,0.00027397,2]
[359209999,1745815652174,-152.76846452,0.000268,2]
[359210000,1745815652206,-224.40116953,0.00027397,2]
[359210001,1745815652228,-359.42,0.000274,2]
[359210002,1745815652248,-300.0,0.00027899,2]
[359210003,1745815652270,-1214.0,0.00029736,2]
[359210004,1745815652290,-316.638546,0.00029919,120]
[359210005,1745815652309,-244.94278873,0.0003,14]
[359210006,1745815652329,-206.339172,0.00030008,2]
[359210007,1745815652349,-191.904501,0.00030136,2]
[359210008,1745815652368,-160.0,0.00030905,2]
[359210009,1745815652388,-160.0,0.00030905,2]
[359210010,1745815652408,-501.10036852,0.00030905,2]
[359210011,1745815652428,-421.20781996,0.00030909,2]
[359210012,1745815652448,-400.0,0.00030913,2]
[359210013,1745815652470,-939.73,0.00030914,2]
[359210014,1745815652490,-1845.9703953,0.00031222,2]
[359210030,1745815755120,-151.38694587,0.00027,3]
[359210031,1745815765177,-161.8989447,0.00027,3]
[359210033,1745815803840,177.83806264,0.00027397,5]
[359210052,1745815831967,-281.29671783,0.00027,30]
[359210059,1745815832068,-139.32078864,0.00027,30]
[359210060,1745815832080,-322.16193736,0.00027397,5]
[359210061,1745815832091,-300.83649096,0.000275,2]
[359210101,1745815840335,-22.63350904,0.000275,2]
[359210102,1745815840345,-160.0,0.00031219,2]
[359210103,1745815840356,-160.0,0.00031219,2]
[359210104,1745815840366,-182.730698,0.00031235,2]
[359210105,1745815840375,-182.730698,0.00031391,2]
[359210106,1745815840384,-200.36876542,0.000319,10]
[359210107,1745815840393,-160.0,0.00031972,2]
[359210108,1745815840402,-110.13074819,0.00031973,2]
[359210109,1745815840414,-40.86925181,0.00031973,2]
[359210110,1745815840423,-207.4,0.00031973,2]
[359210111,1745815840432,-432.2694832,0.00032,30]
[359210131,1745815846104,-4567.7305168,0.00032,30]
[359210132,1745815846114,-200.36876536,0.00032264,10]
[359210133,1745815846123,-200.36876536,0.00032627,10]
[359210134,1745815846133,-212.10937127,0.00032667,2]
[359210135,1745815846145,-184.10116272,0.00032766,2]
[359210136,1745815846155,-176.673,0.00032776,33]
[359210137,1745815846164,-500.0,0.00032855,2]
[359210138,1745815846173,-500.0,0.00032855,2]
[359210139,1745815846183,-341.34531534,0.00032855,2]
[359210140,1745815846191,-500.0,0.00032855,2]
[359210141,1745815846200,-500.0,0.00032855,2]
[359210142,1745815846210,-500.0,0.00032855,2]
[359210143,1745815846219,-500.0,0.00032855,2]
[359210144,1745815846229,-500.0,0.00032855,2]
[359210145,1745815846238,-500.0,0.00032855,2]
[359210146,1745815846247,-500.0,0.00032855,2]
[359210147,1745815846256,-500.0,0.00032855,2]
[359210148,1745815846265,-500.0,0.00032855,2]
[359210149,1745815846274,-500.0,0.00032855,2]
[359210150,1745815846284,-500.0,0.00032855,2]
[359210151,1745815846293,-500.0,0.00032855,2]
[359210152,1745815846302,-500.0,0.00032855,2]
[359210153,1745815846312,-500.0,0.00032855,2]
[359210154,1745815846321,-500.0,0.00032855,2]
[359210155,1745815846331,-500.0,0.00032855,2]
[359210156,1745815846339,-500.0,0.00032855,2]
[359210157,1745815846348,-500.0,0.00032855,2]
[359210158,1745815846357,-500.0,0.00032855,2]
[359210159,1745815846366,-500.0,0.00032855,2]
[359210160,1745815846375,-500.0,0.00032855,2]
[359210161,1745815846384,-500.0,0.00032855,2]
[359210162,1745815846394,-500.0,0.00032855,2]
[359210163,1745815846403,-500.0,0.00032855,2]
[359210164,1745815846413,-500.0,0.00032855,2]
[359210165,1745815846423,-500.0,0.00032855,2]
[359210166,1745815846432,-630.42719436,0.00032855,2]
[359210167,1745815846442,-500.0,0.00032855,2]
[359210168,1745815846452,-500.0,0.00032855,2]
[359210169,1745815846462,-500.0,0.00032855,2]
[359210170,1745815846472,-500.0,0.00032855,2]
[359210171,1745815846482,-500.0,0.00032855,2]
[359210172,1745815846493,-200.0,0.00032855,2]
[359210173,1745815846503,-500.0,0.00032855,2]
[359210174,1745815846513,-300.34306835,0.00032855,2]
[359210175,1745815846523,-428.61012069,0.00032855,2]
[359210176,1745815846533,-21985.78221984,0.00032856,2]
[359210203,1745816750366,-152.55487127,0.00018585,2]
[359210204,1745816750389,-313.28589057,0.00027,3]
[359210205,1745816750410,-1094.022389,0.00027397,2]
[359210206,1745816750432,-271.24415349,0.000278,2]
[359210207,1745816750452,-291.13,0.000279,2]
[359210208,1745816750474,-239.15097845,0.000279,7]
[359210209,1745816750494,-313.28589057,0.00028,10]
[359210210,1745816750516,-128.63615119,0.00028214,2]
[359210211,1745816757128,-142.60800229,0.00028214,2]
[359210212,1745816757156,-239.15097826,0.00028314,7]
[359210213,1745816757178,-271.24415348,0.00028628,2]
[359210214,1745816757200,-239.15097826,0.00028728,8]
[359210215,1745816757222,-271.24415348,0.00029041,2]
[359210216,1745816757245,-239.15097826,0.00029141,8]
[359210217,1745816757271,-397.66684757,0.00029268,2]
[359210219,1745816833126,-286.81242479,0.00029,2]
[359210220,1745816846109,-763.84232256,0.00029,2]
[359210261,1745817032200,-262.01,0.000283,2]
[359210264,1745817032211,-2090.09740753,0.00029,2]
[359210266,1745817032221,-300.0,0.00029267,2]
[359210268,1745817032231,-1200.0,0.00029267,2]
[359210270,1745817032240,-300.0,0.00029267,2]
[359210272,1745817032250,-23242.28908873,0.00029268,2]
[359210274,1745817032259,-1548.1440492,0.00029886,2]
[359210276,1745817032269,-6225.75878203,0.000299,2]
[359210277,1745817032280,-207.26418141,0.000299,8]
[359210279,1745817032289,-6395.0,0.0003,30]
[359210281,1745817032298,-182.0,0.0003,2]
[359210283,1745817032307,-240.052557,0.00030044,2]
[359210285,1745817032317,-207.26418115,0.00030245,9]
[359210288,1745817032326,-237.478909,0.00030356,120]
[359210290,1745817032336,-160.0,0.00030557,2]
[359210293,1745817032345,-160.0,0.00030557,2]
[359210296,1745817032354,-207.26418115,0.0003059,9]
[359210298,1745817032363,-151.0,0.00030816,2]
[359210300,1745817032372,-207.4,0.00030816,2]
[359210302,1745817032380,-207.26418115,0.00030934,9]
[359210303,1745817032389,-207.26418115,0.00031279,9]
[359210306,1745817032398,-840.59878455,0.00031378,2]
[359210310,1745817032408,-12586.92143865,0.00031433,2]
[359210313,1745817032417,-160.0,0.00031433,2]
[359210315,1745817032426,-361.77190102,0.00031433,2]
[359210320,1745817032438,-59.43591894,0.00031433,2]
[359210322,1745817032447,-160.0,0.00031433,2]
[359210324,1745817032457,-184.65286578,0.00031433,2]
[359210326,1745817032467,-191.904501,0.00031446,2]
[359210328,1745817032476,-420.0,0.00031567,2]
[359210330,1745817032486,-207.26418115,0.00031624,10]
[359210331,1745817032497,-1200.0,0.00031702,3]
[359210332,1745817032508,-207.26418115,0.00031969,10]
[359210333,1745817032519,-200.0,0.00032,2]
[359210334,1745817032530,-207.26418115,0.00032314,10]
[359210335,1745817032540,-318.0053915,0.00032428,2]
[359210336,1745817032551,-207.26418115,0.00032659,10]
[359210337,1745817032562,-176.67498292,0.00032728,33]
[359210338,1745817032573,-662.62137139,0.00032765,2]
[359210339,1745817032583,-500.0,0.00032865,2]
[359210340,1745817032594,-500.0,0.00032865,2]
[359210341,1745817032604,-500.0,0.00032865,2]
[359210342,1745817032615,-500.0,0.00032865,2]
[359210343,1745817032626,-500.0,0.00032865,2]
[359210344,1745817032636,-500.0,0.00032865,2]
[359210345,1745817032646,-500.0,0.00032865,2]
[359210346,1745817032656,-500.0,0.00032865,2]
[359210347,1745817032665,-500.0,0.00032865,2]
[359210348,1745817032676,-204.37753819,0.00032865,2]
[359210349,1745817032687,-500.0,0.00032865,2]
[359210350,1745817032697,-500.0,0.00032865,2]
[359210351,1745817032706,-210.24014784,0.00032865,2]
[359210352,1745817032715,-406.84509322,0.00032865,2]
[359210353,1745817032727,-283.00899742,0.00032865,2]
[359210354,1745817032737,-12606.32475914,0.00032866,2]
[359210355,1745817032747,-7371.29542903,0.00032866,2]
[359210356,1745817032759,-90910.46046379,0.00032866,2]
[359210367,1745817038329,-271.24415348,0.00029167,2]
[359210368,1745817038341,-6335.46341981,0.00032866,2]
[359210369,1745817038376,-500.0,0.00032866,2]
[359210370,1745817038434,-22752.24128717,0.00032866,2]
[359210371,1745817038543,-136573.38104906,0.00032866,2]
[359210374,1745817038553,-500.0,0.00032873,5]
[359210375,1745817038563,-500.0,0.00032873,4]
[359210376,1745817038574,-500.0,0.00032873,5]
[359210377,1745817038583,-500.0,0.00032873,5]
[359210379,1745817038593,-300.0,0.00032873,5]
[359210380,1745817038602,-500.0,0.00032873,3]
[359210382,1745817038613,-500.0,0.00032873,5]
[359210383,1745817038622,-500.0,0.00032873,5]
[359210384,1745817038632,-500.0,0.00032873,5]
[359210385,1745817038642,-500.0,0.00032873,5]
[359210386,1745817038652,-503.12888276,0.00032876,2]
[359210387,1745817038661,-501.81232517,0.00032876,2]
[359210388,1745817038671,-200.0,0.00032876,2]
[359210389,1745817038681,-485.80910276,0.00032876,2]
[359210390,1745817038858,-218.25747451,0.00032876,2]
[359210391,1745817038868,-500.94164558,0.00032876,2]
[359210392,1745817038878,-519.3986597,0.00032876,2]
[359210393,1745817038888,-200.0,0.00032876,2]
[359210394,1745817038899,-172.21956263,0.00032876,2]
[359210395,1745817038909,-500.0,0.00032876,2]
[359210396,1745817038919,-352.05728904,0.00032876,2]
[359210397,1745817038929,-400.0,0.00032876,2]
[359210398,1745817038939,-500.0,0.00032876,2]
[359210399,1745817038949,-500.0,0.00032876,2]
[359210400,1745817038959,-500.0,0.00032876,2]
[359210401,1745817038968,-500.0,0.00032876,2]
[359210402,1745817038978,-500.0,0.00032876,2]
[359210403,1745817038987,-500.0,0.00032876,2]
[359210404,1745817038997,-500.0,0.00032876,2]
[359210405,1745817039006,-500.0,0.00032876,2]
[359210406,1745817039015,-413.28969705,0.00032876,2]
[359210407,1745817039026,-500.0,0.00032876,2]
[359210408,1745817039036,-500.0,0.00032876,2]
[359210409,1745817039046,-500.0,0.00032876,2]
[359210410,1745817039057,-500.0,0.00032876,2]
[359210411,1745817039066,-500.0,0.00032876,2]
[359210412,1745817039075,-500.0,0.00032876,2]
[359210413,1745817039085,-500.0,0.00032876,2]
[359210414,1745817039096,-400.0,0.00032876,2]
[359210415,1745817039106,-209.75723227,0.00032876,2]
[359210416,1745817039115,-206.99839806,0.00032876,2]
[359210417,1745817039126,-400.0,0.00032876,2]
[359210418,1745817039138,-207.33552569,0.00032876,2]
[359210419,1745817039147,-210.71971212,0.00032876,2]
[359210420,1745817039158,-508.04224845,0.00032876,2]
[359210421,1745817039167,-208.03296795,0.00032876,2]
[359210422,1745817039177,-206.23036345,0.00032876,2]
[359210423,1745817039186,-500.0,0.00032876,2]
[359210424,1745817039195,-400.0,0.00032876,2]
[359210425,1745817039206,-206.82702246,0.00032876,2]
[359210426,1745817039216,-203.75674153,0.00032876,2]
[359210427,1745817039225,-500.0,0.00032876,2]
[359210428,1745817039236,-500.0,0.00032876,2]
[359210429,1745817039245,-500.0,0.00032876,2]
[359210430,1745817039255,-152.28036513,0.00032876,2]
[359210431,1745817039265,-400.0,0.00032876,2]
[359210432,1745817039276,-205.71165671,0.00032876,2]
[359210433,1745817039287,-400.0,0.00032876,2]
[359210434,1745817039298,-400.0,0.00032876,2]
[359210435,1745817039307,-204.1727272,0.00032876,2]
[359210436,1745817039318,-400.0,0.00032876,2]
[359210437,1745817039329,-400.0,0.00032876,2]
[359210438,1745817039338,-207.45125657,0.00032876,2]
[359210439,1745817039347,-400.0,0.00032876,2]
[359210440,1745817039357,-400.0,0.00032876,2]
[359210441,1745817039366,-400.0,0.00032876,2]
[359210442,1745817039375,-400.0,0.00032876,2]
[359210443,1745817039384,-400.0,0.00032876,2]
[359210444,1745817039394,-400.0,0.00032876,2]
[359210445,1745817039403,-500.0,0.00032876,2]
[359210446,1745817039411,-400.0,0.00032876,2]
[359210447,1745817039421,-400.0,0.00032876,2]
[359210448,1745817039430,-201.97093657,0.00032876,2]
[359210449,1745817039439,-212.71769265,0.00032876,2]
[359210450,1745817039449,-400.0,0.00032876,2]
[359210451,1745817039458,-487.20698309,0.00032876,2]
[359210452,1745817039468,-400.0,0.00032876,2]
[359210453,1745817039477,-208.81677708,0.00032876,2]
[359210454,1745817039490,-400.0,0.00032876,2]
[359210455,1745817039500,-400.0,0.00032876,2]
[359210456,1745817039509,-400.0,0.00032876,2]
[359210457,1745817039519,-167.35227657,0.00032876,2]